bitfinex-derivatives/quotes_BTCF0:USTF0_20230901
["timestamp","ask_amount","ask_price","bid_price","bid_amount"]
[1693605715716,0.32045,25823.0,25822.0,2.52992127]
[1693605715915,0.32145,25823.0,25822.0,2.52892127]
[1693605716121,0.462885,25823.0,25822.0,2.52892127]
[1693605716322,0.466745,25823.0,25822.0,2.30644636]
[1693605716722,0.621045,25823.0,25822.0,2.30644636]
[1693605716920,0.621045,25823.0,25822.0,2.4158245]
[1693605717119,0.601045,25823.0,25822.0,2.30644636]
[1693605717426,0.621045,25823.0,25822.0,2.30644636]
[1693605717616,0.621045,25823.0,25822.0,2.16114636]
[1693605718129,0.620045,25823.0,25822.0,2.04599281]
[1693605718624,0.620045,25823.0,25822.0,2.12339593]
[1693605719017,0.76534,25823.0,25822.0,1.97809593]
[1693605721026,0.74534,25823.0,25822.0,1.97809593]
[1693605721526,1.16118,25823.0,25822.0,1.19039281]
[1693605721724,1.18118,25823.0,25822.0,1.19039281]
[1693605722126,1.16118,25823.0,25822.0,1.19039281]
[1693605722828,1.18118,25823.0,25822.0,1.19039281]
[1693605723124,1.16118,25823.0,25822.0,1.19039281]
[1693605723529,1.16504,25823.0,25822.0,0.074]
[1693605723722,1.18504,25823.0,25822.0,0.074]
[1693605740632,0.441885,25823.0,25822.0,2.4137355]
[1693605740934,0.441885,25823.0,25822.0,2.4337355]
[1693605742529,0.006,25823.0,25822.0,2.51111413]
[1693605742730,0.006,25823.0,25822.0,2.54980345]
[1693605743131,0.006,25823.0,25822.0,2.4337355]
[1693605743335,0.006,25823.0,25822.0,2.54980345]
[1693605744221,0.151295,25823.0,25822.0,2.54980345]
[1693605744428,0.29659,25823.0,25822.0,2.54980345]
[1693605748741,0.29659,25823.0,25822.0,2.4337355]
[1693605748933,0.29659,25823.0,25822.0,2.54964815]
[1693605752140,0.006,25823.0,25822.0,2.54964815]
[1693605752440,0.006,25823.0,25822.0,2.4337355]
[1693605752738,0.006,25823.0,25822.0,2.58849276]
[1693605753532,0.006,25823.0,25822.0,2.4337355]
[1693605753733,0.006,25823.0,25822.0,2.58849276]
[1693605755044,0.006,25823.0,25822.0,2.8448866]
[1693605755431,0.006,25823.0,25822.0,2.58849276]
[1693605755633,0.006,25823.0,25822.0,2.84488662]
[1693605756642,0.290548,25827.0,25825.0,0.01385517]
[1693605756843,0.145273,25827.0,25826.0,1.07815227]
[1693605757143,0.145273,25827.0,25826.0,1.30062718]
[1693605757330,0.290547,25827.0,25826.0,1.30062718]
[1693605757734,0.290547,25827.0,25826.0,1.22328691]
[1693605758442,0.290547,25827.0,25826.0,1.30562829]
[1693605758643,0.290547,25827.0,25826.0,1.34429732]
[1693605758843,0.299547,25827.0,25826.0,1.37629732]
[1693605759035,0.302547,25827.0,25826.0,1.37629732]
[1693605759443,0.293547,25827.0,25826.0,1.26028691]
[1693605759748,0.295547,25827.0,25826.0,1.40629732]
[1693605760545,0.860521,25827.0,25826.0,0.76412241]
[1693605761637,0.860521,25827.0,25826.0,0.648112]
[1693605761847,1.023421,25827.0,25826.0,0.648112]
[1693605762644,1.023421,25827.0,25826.0,0.72544616]
[1693605766551,1.023421,25827.0,25826.0,0.648112]
[1693605768052,1.168695,25827.0,25826.0,0.212278]
[1693605768348,1.188695,25827.0,25824.0,0.03050769]
[1693605768549,0.84326,25825.0,25822.0,0.36793116]
[1693605768749,0.42356,25823.0,25822.0,0.22263216]
[1693605768950,1.00088,25823.0,25822.0,1.33900504]
[1693605769249,1.18658,25823.0,25822.0,1.33900504]
[1693605769955,1.18658,25823.0,25822.0,1.33900023]
[1693605770251,1.18958,25823.0,25822.0,1.37600023]
[1693605770551,1.18958,25823.0,25822.0,1.29867088]
[1693605770752,1.19258,25823.0,25822.0,1.33567088]
[1693605772955,1.19058,25823.0,25822.0,1.29767088]
[1693605773154,1.19258,25823.0,25822.0,1.32167088]
[1693605773353,1.19258,25823.0,25822.0,1.17637288]
[1693605773556,1.19258,25823.0,25822.0,0.06]
[1693605775157,1.19644,25823.0,25822.0,0.06]
[1693605780367,1.19644,25823.0,25822.0,0.09881405]
[1693605783871,1.17644,25823.0,25822.0,0.09881405]
[1693605784074,1.19644,25823.0,25822.0,0.09881405]
[1693605786073,2.39644,25823.0,25822.0,0.09881405]
[1693605786270,2.55084593,25823.0,25819.0,0.07732935]
[1693605786466,1.62356,25820.0,25818.0,0.07732935]
[1693605786782,1.62356,25820.0,25817.0,0.07732935]
[1693605786783,0.00386,25818.0,25817.0,0.07732935]
[1693605787077,0.8394,25817.0,25816.0,0.07732935]
[1693605787274,1.578712,25817.0,25816.0,0.07732935]
[1693605787470,1.578712,25817.0,25816.0,1.19399855]
[1693605787777,1.578712,25817.0,25816.0,1.1166692]
[1693605788672,1.579712,25817.0,25816.0,1.1226692]
[1693605789276,1.582712,25817.0,25816.0,1.1256692]
[1693605789779,1.582712,25817.0,25816.0,1.20299855]
[1693605793975,2.802712,25817.0,25816.0,1.20299855]
[1693605798781,2.83303343,25817.0,25816.0,1.20299855]
[1693605799288,2.83303343,25817.0,25816.0,0.08632935]
[1693605801080,2.81303343,25817.0,25816.0,0.08632935]
[1693605801681,2.754873,25817.0,25816.0,0.08632935]
[1693605802285,2.72455157,25817.0,25816.0,0.23166335]
[1693605804592,2.72455157,25817.0,25816.0,0.23153035]
[1693605804891,2.72455157,25817.0,25816.0,0.154334]
[1693605806388,2.72455157,25817.0,25816.0,0.23153035]
[1693605807490,2.72455157,25817.0,25816.0,0.37686435]
[1693605809587,2.72455157,25817.0,25816.0,1.49352608]
[1693605810389,2.72455157,25817.0,25816.0,1.34819208]
[1693605811393,2.72455157,25817.0,25816.0,1.38679026]
[1693605812897,2.72455157,25817.0,25816.0,0.27012853]
[1693605814104,2.72455157,25817.0,25816.0,0.41546253]
[1693605814289,1.37922357,25817.0,25816.0,0.56079653]
[1693605814486,0.32677709,25817.0,25816.0,1.98341828]
[1693605814687,0.32677709,25817.0,25816.0,2.17640917]
[1693605814894,0.32677709,25817.0,25816.0,2.39888408]
[1693605815699,0.47210009,25817.0,25816.0,2.39888408]
[1693605819698,0.47210009,25817.0,25816.0,2.20589319]
[1693605820307,0.47210009,25817.0,25816.0,1.94942562]
[1693605820804,0.61742309,25817.0,25816.0,1.98030522]
[1693605821104,0.61742309,25817.0,25816.0,0.86369051]
[1693605822800,0.47210009,25817.0,25816.0,0.86369051]
[1693605829710,0.47210009,25817.0,25816.0,0.84369051]
[1693605835716,0.61742209,25817.0,25816.0,0.84369051]
[1693605840127,0.47209909,25817.0,25816.0,0.84369051]
[1693605842418,0.32677709,25817.0,25816.0,0.84369051]
[1693605843726,0.47209709,25817.0,25816.0,0.84369051]
[1693605845625,0.32677709,25817.0,25816.0,0.84369051]
[1693605855333,0.4237,25817.0,25816.0,0.84369051]
[1693605856933,0.004,25817.0,25816.0,1.26339051]
[1693605863639,0.004,25817.0,25816.0,1.23251091]
[1693605864339,0.004,25817.0,25816.0,1.26417996]
[1693605866940,0.4237,25817.0,25816.0,1.26417996]
[1693605876947,0.004,25817.0,25816.0,1.26417996]
[1693605881655,0.004,25817.0,25816.0,1.23251091]
[1693605883363,0.004,25817.0,25816.0,1.26405061]
[1693605888660,0.004,25817.0,25816.0,1.23251091]
[1693605888959,0.149319,25817.0,25816.0,1.23251091]
[1693605891159,0.294638,25817.0,25816.0,1.23251091]
[1693605891958,0.714338,25817.0,25816.0,0.81281091]
[1693605892152,0.714338,25817.0,25816.0,0.70343277]
[1693605892458,0.714338,25817.0,25816.0,0.58881063]
[1693605892648,0.859657,25817.0,25816.0,0.58881063]
[1693605893157,0.859657,25817.0,25816.0,0.47571386]
[1693605894058,1.444676,25817.0,25816.0,0.009]
[1693605894260,1.444676,25817.0,25814.0,0.00058102]
[1693605894455,0.4197,25815.0,25814.0,0.00058102]
[1693605894762,1.021016,25815.0,25814.0,0.00058102]
[1693605896062,1.021016,25815.0,25814.0,0.01858102]
[1693605896759,1.021016,25815.0,25814.0,0.01958102]
[1693605896950,1.025016,25815.0,25814.0,0.01958102]
[1693605897262,1.029016,25815.0,25814.0,0.01958102]
[1693605898259,1.025016,25815.0,25814.0,0.01858102]
[1693605898659,1.025016,25815.0,25814.0,0.00158102]
[1693605898860,1.027016,25815.0,25814.0,0.01958102]
[1693605899370,1.027016,25815.0,25814.0,0.16491602]
[1693605901666,1.027016,25815.0,25814.0,0.01958102]
[1693605903666,1.027016,25815.0,25814.0,0.16491602]
[1693605908868,1.178316,25815.0,25814.0,0.16491602]
[1693605911771,1.012987,25815.0,25814.0,0.56868479]
[1693605912871,1.012987,25815.0,25814.0,0.67806293]
[1693605913072,1.012987,25815.0,25814.0,0.56868479]
[1693605916872,1.012987,25815.0,25814.0,0.67806293]
[1693605917173,1.012987,25815.0,25814.0,0.56868479]
[1693605921171,1.012987,25815.0,25814.0,0.45558802]
[1693605928374,1.04439921,25815.0,25814.0,0.45558802]
[1693605933190,1.04439921,25815.0,25814.0,0.56868479]
[1693605934591,1.04439921,25815.0,25814.0,0.45558802]
[1693605940692,1.012987,25815.0,25814.0,0.45558802]
[1693605940898,0.861687,25815.0,25814.0,0.45558802]
[1693605941197,1.183187,25815.0,25814.0,0.45558802]
[1693605942400,1.2144443,25815.0,25814.0,0.45558802]
[1693605945197,1.2144443,25815.0,25814.0,0.56868479]
[1693605946901,1.2144443,25815.0,25814.0,0.45558802]
[1693605950202,1.183187,25815.0,25814.0,0.45558802]
[1693605951004,1.183187,25815.0,25814.0,0.56868479]
[1693605953406,1.183187,25815.0,25814.0,0.45558802]
[1693605955906,1.183187,25815.0,25814.0,0.56868479]
[1693605960710,1.183187,25815.0,25814.0,0.67806293]
[1693605961011,1.183187,25815.0,25814.0,0.56868479]
[1693605961311,1.183187,25815.0,25814.0,0.67806293]
[1693605961613,1.183187,25815.0,25814.0,0.56868479]
[1693605963712,1.183187,25815.0,25814.0,0.67806293]
[1693605963924,1.183187,25815.0,25814.0,0.56868479]
[1693605964207,0.4257,25815.0,25814.0,0.84339893]
[1693605964412,0.006,25815.0,25814.0,1.26309893]
[1693605964602,0.4197,25817.0,25814.0,1.26309893]
[1693605964806,0.4197,25817.0,25816.0,1.146325]
[1693605965105,0.4197,25818.0,25816.0,1.166325]
[1693605965304,0.16027262,25819.0,25818.0,0.730435]
[1693605965504,0.00057262,25819.0,25818.0,1.150135]
[1693605965708,0.00057262,25819.0,25818.0,1.26323177]
[1693605965913,0.00057262,25819.0,25818.0,1.37260991]
[1693605966910,0.06157262,25819.0,25818.0,1.37560991]
[1693605967314,0.04057262,25819.0,25818.0,1.38360991]
[1693605967513,0.00457262,25819.0,25818.0,1.38160991]
[1693605967713,0.00857262,25819.0,25818.0,1.40160991]
[1693605972921,0.00857262,25819.0,25818.0,1.42160991]
[1693605977025,0.00857262,25819.0,25818.0,1.45210362]
[1693605978427,0.00857262,25819.0,25818.0,1.43210362]
[1693605980230,0.00857262,25819.0,25818.0,1.20962871]
[1693605980423,0.74275062,25819.0,25818.0,0.610252]
[1693605980623,0.90885062,25819.0,25818.0,0.610252]
[1693605981332,1.05415962,25819.0,25818.0,0.610252]
[1693605984928,1.05415962,25819.0,25818.0,0.72334877]
[1693605986438,1.17946862,25819.0,25818.0,0.174313]
[1693605986642,1.19946862,25819.0,25818.0,0.174313]
[1693605990844,1.19946862,25819.0,25818.0,0.319627]
[1693605995843,1.17946862,25819.0,25818.0,0.319627]
[1693605996048,1.19946862,25819.0,25818.0,0.319627]
[1693605997349,1.17946862,25819.0,25818.0,0.319627]
[1693605997550,1.19946862,25819.0,25818.0,0.319627]
[1693606004354,1.19946862,25819.0,25818.0,0.43272377]
[1693606004955,1.19946862,25819.0,25818.0,0.319627]
[1693606007254,1.17946862,25819.0,25818.0,0.319627]
[1693606008454,1.03029962,25819.0,25818.0,0.72335177]
[1693606008650,0.88499062,25819.0,25818.0,0.72335177]
[1693606009155,0.88499062,25819.0,25818.0,0.83272991]
[1693606009659,0.71889062,25819.0,25818.0,0.83659991]
[1693606013561,0.71889062,25819.0,25818.0,0.85659991]
[1693606015158,0.86419962,25819.0,25818.0,0.85659991]
[1693606017462,0.86419962,25819.0,25818.0,0.85272991]
[1693606017958,0.42827262,25819.0,25818.0,0.85272991]
[1693606023165,0.42827262,25819.0,25818.0,0.83272991]
[1693606023368,0.42827262,25819.0,25818.0,0.85272991]
[1693606024261,0.42827262,25819.0,25818.0,0.83272991]
[1693606026074,0.57358162,25819.0,25818.0,0.72335177]
[1693606026969,0.57358162,25819.0,25818.0,1.25242991]
[1693606027269,0.57358162,25819.0,25818.0,1.14305177]
[1693606027572,0.57358162,25819.0,25818.0,1.25242991]
[1693606028269,0.57358162,25819.0,25818.0,1.28302578]
[1693606031973,0.71889062,25819.0,25818.0,1.17364764]
[1693606032473,0.71889062,25819.0,25818.0,1.28302578]
[1693606034069,0.71889062,25819.0,25818.0,1.25242991]
[1693606034275,0.86805962,25819.0,25818.0,0.464941]
[1693606034476,1.02385962,25819.0,25818.0,0.464941]
[1693606035279,1.16916862,25819.0,25818.0,0.464941]
[1693606037877,1.20074064,25819.0,25818.0,0.464941]
[1693606038978,1.20074064,25819.0,25818.0,0.174313]
[1693606038979,1.22074064,25819.0,25818.0,0.174313]
[1693606041178,1.22074064,25819.0,25818.0,0.319627]
[1693606046181,1.22074064,25819.0,25818.0,0.464941]
[1693606049789,1.20074064,25819.0,25818.0,0.464941]
[1693606061593,0.42827262,25819.0,25818.0,0.68741591]
[1693606061794,0.00857262,25819.0,25818.0,1.27629991]
[1693606062798,0.42827262,25819.0,25818.0,1.27629991]
[1693606072809,0.42827262,25819.0,25818.0,1.16692177]
[1693606073210,0.57358062,25819.0,25818.0,1.19789288]
[1693606073709,0.57358062,25819.0,25818.0,1.30727102]
[1693606075312,0.57358062,25819.0,25818.0,1.28727102]
[1693606076911,0.57358062,25819.0,25818.0,0.86757102]
[1693606077411,0.57358062,25819.0,25818.0,1.28727102]
[1693606080613,0.57358062,25819.0,25818.0,1.17789288]
[1693606080813,0.57358062,25819.0,25818.0,1.28727102]
[1693606081723,0.57358062,25819.0,25818.0,1.17789288]
[1693606082410,0.57358062,25819.0,25818.0,1.28727102]
[1693606082610,0.57358062,25819.0,25818.0,1.17789288]
[1693606084018,0.57358062,25819.0,25818.0,1.28727102]
[1693606085116,0.57358062,25819.0,25818.0,1.17789288]
[1693606086411,0.71888862,25819.0,25818.0,1.06479611]
[1693606086711,1.19146462,25819.0,25818.0,0.319627]
[1693606086913,1.19146462,25819.0,25818.0,0.029]
[1693606090518,1.19146462,25819.0,25818.0,0.174313]
[1693606093225,1.22310887,25819.0,25818.0,0.174313]
[1693606096228,1.19146462,25819.0,25818.0,0.174313]
[1693606096427,1.19146462,25819.0,25818.0,0.319626]
[1693606104036,1.17146462,25819.0,25818.0,0.319626]
[1693606114044,1.16760462,25819.0,25818.0,0.323496]
[1693606121742,1.31790462,25819.0,25818.0,0.323496]
[1693606135462,1.00950462,25819.0,25818.0,0.323496]
[1693606137655,1.34170462,25819.0,25818.0,0.323496]
[1693606144476,1.00950462,25819.0,25818.0,0.323496]
[1693606149078,1.32630462,25819.0,25818.0,0.323496]
[1693606153079,1.35016462,25819.0,25818.0,0.029]
[1693606153283,1.49547262,25819.0,25818.0,0.029]
[1693606153682,0.4197,25817.0,25815.0,0.3210786]
[1693606153982,0.4197,25817.0,25815.0,0.290654]
[1693606153983,1.000996,25816.0,25815.0,0.290654]
[1693606154189,1.181796,25816.0,25815.0,0.290654]
[1693606154387,1.181796,25816.0,25814.0,0.00058102]
[1693606154687,1.00102,25815.0,25814.0,0.00058102]
[1693606155078,1.17652,25815.0,25814.0,0.00058102]
[1693606156285,1.16052,25815.0,25814.0,0.00158102]
[1693606156591,1.18052,25815.0,25814.0,0.00158102]
[1693606156781,1.18052,25815.0,25814.0,0.00258102]
[1693606156980,1.18452,25815.0,25814.0,0.00358102]
[1693606159293,1.18252,25815.0,25814.0,0.00358102]
[1693606160388,1.16252,25815.0,25814.0,0.00358102]
[1693606162396,1.30785,25815.0,25814.0,0.00358102]
[1693606162892,1.32785,25815.0,25814.0,0.00358102]
[1693606164496,1.32785,25815.0,25811.0,0.145351]
[1693606164699,0.4197,25812.0,25811.0,0.145351]
[1693606165000,1.001088,25812.0,25811.0,0.145351]
[1693606165498,1.001088,25812.0,25810.0,0.17673934]
[1693606165698,0.5783,25811.0,25810.0,0.17673934]
[1693606165898,1.159712,25811.0,25810.0,0.17673934]
[1693606166099,1.323912,25811.0,25810.0,0.17673934]
[1693606167602,1.327912,25811.0,25810.0,0.17673934]
[1693606167808,1.327912,25811.0,25810.0,0.03138634]
[1693606168008,0.4197,25810.0,25809.0,0.29517413]
[1693606168211,1.420832,25810.0,25809.0,0.31517413]
[1693606168903,1.420832,25810.0,25809.0,0.34648407]
[1693606169306,1.424832,25810.0,25809.0,0.20112207]
[1693606169610,1.428832,25810.0,25809.0,0.05576107]
[1693606169909,1.428832,25810.0,25806.0,0.0623588]
[1693606170111,0.4197,25807.0,25806.0,0.169245]
[1693606170307,0.855825,25807.0,25806.0,0.460007]
[1693606172202,0.863825,25807.0,25806.0,0.460007]
[1693606176713,0.863825,25807.0,25806.0,0.440007]
[1693606181322,0.859825,25807.0,25806.0,0.440007]
[1693606181526,0.863825,25807.0,25806.0,0.440007]
[1693606183125,0.859825,25807.0,25806.0,0.440007]
[1693606183425,0.863825,25807.0,25806.0,0.440007]
[1693606184430,0.4277,25807.0,25806.0,0.585388]
[1693606184621,0.4277,25807.0,25806.0,0.605388]
[1693606185021,0.4277,25807.0,25806.0,0.82786291]
[1693606195538,0.4277,25807.0,25806.0,0.80786291]
[1693606196638,0.4277,25807.0,25806.0,0.69848477]
[1693606196936,0.4277,25807.0,25806.0,0.80786291]
[1693606201634,0.43157,25807.0,25806.0,0.69461477]
[1693606201940,0.576944,25807.0,25806.0,0.69461477]
[1693606202538,0.576944,25807.0,25806.0,0.80399291]
[1693606202738,0.576944,25807.0,25806.0,0.69461477]
[1693606207644,0.722319,25807.0,25806.0,0.581518]
[1693606210246,0.722319,25807.0,25806.0,0.69461477]
[1693606210544,0.43157,25807.0,25806.0,0.69461477]
[1693606211147,0.43157,25807.0,25806.0,0.80399291]
[1693606211445,0.43157,25807.0,25806.0,0.69461477]
[1693606211846,0.43157,25807.0,25806.0,0.80399291]
[1693606212042,0.43157,25807.0,25806.0,0.69461477]
[1693606215952,0.43157,25807.0,25806.0,0.80399291]
[1693606216155,0.43157,25807.0,25806.0,0.69461477]
[1693606216551,0.43157,25807.0,25806.0,0.80399291]
[1693606216753,0.43157,25807.0,25806.0,0.69461477]
[1693606217847,0.43157,25807.0,25806.0,0.80399291]
[1693606218354,0.43157,25807.0,25806.0,0.69461477]
[1693606220358,0.43157,25807.0,25806.0,0.80399291]
[1693606221054,0.43157,25807.0,25806.0,0.69461477]
[1693606225465,0.4277,25807.0,25806.0,0.69461477]
[1693606228769,0.4277,25807.0,25806.0,0.69849477]
[1693606236478,0.4277,25807.0,25806.0,0.80787291]
[1693606236969,0.4277,25807.0,25806.0,0.69849477]
[1693606246184,0.573079,25807.0,25806.0,0.69849477]
[1693606246879,0.867707,25807.0,25806.0,0.436137]
[1693606247084,0.887707,25807.0,25806.0,0.436137]
[1693606248285,0.887707,25807.0,25806.0,0.290756]
[1693606249185,0.887707,25807.0,25805.0,0.145382]
[1693606249186,0.00387,25806.0,25805.0,0.145382]
[1693606249382,0.9,25805.0,25804.0,0.00058124]
[1693606249587,0.4197,25802.0,25801.0,0.145411]
[1693606249783,1.295621,25802.0,25801.0,0.290822]
[1693606250692,1.150214,25802.0,25801.0,0.436234]
[1693606250988,1.154214,25802.0,25801.0,0.436234]
[1693606251191,1.309714,25802.0,25801.0,0.436234]
[1693606251489,1.455121,25802.0,25801.0,0.436234]
[1693606253686,1.451121,25802.0,25801.0,0.436234]
[1693606253891,1.453121,25802.0,25801.0,0.436234]
[1693606261397,1.433121,25802.0,25801.0,0.436234]
[1693606261597,1.433121,25802.0,25801.0,0.54561214]
[1693606261797,1.433121,25802.0,25801.0,0.436234]
[1693606261999,1.433121,25802.0,25801.0,0.54933077]
[1693606268005,1.433121,25802.0,25801.0,0.436234]
[1693606276713,1.578528,25802.0,25800.0,0.32237091]
[1693606276915,0.4197,25801.0,25800.0,0.32237091]
[1693606277107,0.855936,25801.0,25800.0,0.32237091]
[1693606278611,1.155748,25801.0,25800.0,0.32237091]
[1693606278811,1.155748,25801.0,25800.0,0.290828]
[1693606279016,1.155748,25801.0,25800.0,0.145413]
[1693606279520,1.159748,25801.0,25800.0,0.145413]
[1693606279721,1.159748,25801.0,25799.0,0.290844]
[1693606279917,0.4197,25800.0,25799.0,0.290844]
[1693606280116,0.855951,25800.0,25799.0,0.32200468]
[1693606281323,0.859951,25800.0,25799.0,0.32200468]
[1693606282824,0.863951,25800.0,25799.0,0.32200468]
[1693606289129,2.374785,25800.0,25795.0,0.05782114]
[1693606289434,0.4197,25796.0,25795.0,0.145446]
[1693606289732,1.001464,25796.0,25795.0,0.145446]
[1693606289924,1.021464,25796.0,25795.0,0.145446]
[1693606292025,1.025464,25796.0,25795.0,0.145446]
[1693606292630,1.029464,25796.0,25795.0,0.145446]
[1693606297532,1.009464,25796.0,25795.0,0.145446]
[1693606297730,1.341164,25796.0,25795.0,0.145446]
[1693606300838,1.341164,25796.0,25795.0,0.290893]
[1693606303039,1.321164,25796.0,25795.0,0.290893]
[1693606312541,1.009464,25796.0,25795.0,0.290893]
[1693606312943,1.312064,25796.0,25795.0,0.290893]
[1693606319242,1.021182,25796.0,25795.0,0.54943677]
[1693606319446,1.021182,25796.0,25795.0,0.56943677]
[1693606323142,1.021182,25796.0,25795.0,0.54943677]
[1693606327554,1.021182,25796.0,25795.0,0.43634]
[1693606328052,1.166623,25796.0,25795.0,0.43634]
[1693606333350,0.864023,25796.0,25795.0,0.43634]
[1693606334750,1.023623,25796.0,25795.0,0.43634]
[1693606339062,1.023623,25796.0,25795.0,0.290893]
[1693606340364,1.169064,25796.0,25794.0,0.290898]
[1693606340662,0.603923,25796.0,25794.0,0.436348]
[1693606341760,0.623923,25796.0,25794.0,0.436348]
[1693606343557,0.603923,25796.0,25794.0,0.436348]
[1693606343756,0.623923,25796.0,25794.0,0.436348]
[1693606344358,0.65534595,25796.0,25794.0,0.436348]
[1693606347957,0.80078695,25796.0,25794.0,0.436348]
[1693606353068,0.80078695,25796.0,25794.0,0.65882291]
[1693606353278,0.80078695,25796.0,25794.0,0.54572614]
[1693606353878,0.80078695,25796.0,25794.0,0.436348]
[1693606355269,0.78078695,25796.0,25794.0,0.436348]
[1693606355470,0.80078695,25796.0,25794.0,0.436348]
[1693606355670,0.80078695,25796.0,25794.0,0.54572614]
[1693606355872,0.80078695,25796.0,25794.0,0.436348]
[1693606356178,0.78078695,25796.0,25794.0,0.55332477]
[1693606356379,0.78078695,25796.0,25794.0,0.440228]
[1693606358470,0.749364,25796.0,25794.0,0.145447]
[1693606358669,1.134164,25794.0,25792.0,0.145454]
[1693606358866,1.134164,25794.0,25793.0,0.14545]
[1693606358867,0.859911,25794.0,25793.0,0.14545]
[1693606359065,1.279611,25794.0,25791.0,0.145461]
[1693606359278,1.279611,25794.0,25791.0,0.17689014]
[1693606359279,0.4197,25792.0,25791.0,0.17689014]
[1693606359477,0.710616,25792.0,25791.0,0.46781814]
[1693606360578,0.714616,25792.0,25791.0,0.46781814]
[1693606361281,0.718616,25792.0,25791.0,0.46781814]
[1693606370290,0.864074,25792.0,25791.0,0.46781814]
[1693606373290,0.4277,25792.0,25791.0,0.83575705]
[1693606373587,0.4277,25792.0,25791.0,0.85575705]
[1693606381486,0.4277,25792.0,25791.0,0.83575705]
[1693606381693,0.4277,25792.0,25791.0,0.85575705]
[1693606382888,0.4277,25792.0,25791.0,0.83575705]
[1693606387498,0.4277,25792.0,25791.0,0.72637891]
[1693606388097,0.4277,25792.0,25791.0,0.83575705]
[1693606390702,0.4277,25792.0,25791.0,0.72637891]
[1693606390902,0.4277,25792.0,25791.0,0.83575705]
[1693606405121,0.5847,25792.0,25791.0,0.83575705]
[1693606413240,0.7489,25792.0,25791.0,0.83575705]
[1693606418139,0.894355,25792.0,25791.0,0.83575705]
[1693606419441,0.894355,25792.0,25791.0,0.61328214]
[1693606420439,1.039811,25792.0,25791.0,0.61328214]
[1693606421243,1.039811,25792.0,25791.0,0.72266028]
[1693606421441,1.039811,25792.0,25791.0,0.72637891]
[1693606421942,1.039811,25792.0,25791.0,0.83575705]
[1693606422744,1.039811,25792.0,25791.0,0.72637891]
[1693606423045,1.039811,25792.0,25791.0,0.83575705]
[1693606423942,1.039811,25792.0,25791.0,0.72637891]
[1693606424143,1.039811,25792.0,25791.0,0.83575705]
[1693606424340,1.039811,25792.0,25791.0,0.72637891]
[1693606424743,0.894355,25792.0,25791.0,0.72637891]
[1693606425243,0.894355,25792.0,25791.0,0.83575705]
[1693606425745,0.894355,25792.0,25791.0,0.72637891]
[1693606426141,0.894355,25792.0,25791.0,0.83575705]
[1693606426748,0.894355,25792.0,25791.0,0.72637891]
[1693606427237,0.894355,25792.0,25791.0,0.83575705]
[1693606427943,1.039812,25792.0,25791.0,0.46781814]
[1693606429144,1.185269,25792.0,25791.0,0.46781814]
[1693606439155,1.205269,25792.0,25791.0,0.46781814]
[1693606443656,1.205269,25792.0,25791.0,0.58091491]
[1693606444562,1.059812,25792.0,25791.0,0.58091491]
[1693606446059,1.039812,25792.0,25791.0,0.58091491]
[1693606451463,1.039812,25792.0,25791.0,0.46781814]
[1693606458370,1.039812,25792.0,25791.0,0.58091491]
[1693606463590,0.718612,25792.0,25791.0,0.58091491]
[1693606463789,0.718612,25792.0,25791.0,0.69029305]
[1693606463982,0.875612,25792.0,25791.0,0.69029305]
[1693606464189,0.875612,25792.0,25791.0,0.58091491]
[1693606466290,0.730155,25792.0,25791.0,0.58091491]
[1693606466892,0.730155,25792.0,25791.0,0.69029305]
[1693606467187,0.5847,25792.0,25791.0,0.83575705]
[1693606467390,0.51020431,25792.0,25791.0,0.85575705]
[1693606469088,0.51020431,25792.0,25791.0,0.83575705]
[1693606469291,0.51020431,25792.0,25791.0,0.85575705]
[1693606472895,0.51020431,25792.0,25791.0,0.83575705]
[1693606475901,0.4197,25802.0,25794.0,0.00388]
[1693606476090,0.38901182,25796.0,25795.0,1.36937491]
[1693606476298,0.4197,25799.0,25798.0,0.3]
[1693606476599,0.40654867,25799.0,25798.0,1.68926491]
[1693606476800,0.4197,25800.0,25798.0,1.68926491]
[1693606477002,0.4197,25802.0,25799.0,0.4197]
[1693606477202,0.4197,25802.0,25800.0,0.64217491]
[1693606477398,0.4197,25802.0,25801.0,0.585472]
[1693606477902,0.4197,25802.0,25801.0,0.605472]
[1693606478103,0.4197,25802.0,25801.0,0.82794691]
[1693606478706,0.4227,25802.0,25801.0,0.86494691]
[1693606479505,0.4257,25802.0,25801.0,0.90194691]
[1693606485503,0.4257,25802.0,25801.0,0.93245382]
[1693606485709,0.4257,25802.0,25801.0,0.91245382]
[1693606488508,0.4257,25802.0,25801.0,1.33215382]
[1693606493219,1.446968,25802.0,25801.0,0.074]
[1693606497822,1.446968,25802.0,25801.0,0.07279215]
[1693606499120,1.446968,25802.0,25801.0,0.21819015]
[1693606501217,0.8454,25802.0,25801.0,0.77136092]
[1693606501419,0.4257,25802.0,25801.0,0.79136092]
[1693606502021,0.4257,25802.0,25801.0,0.90073906]
[1693606505426,0.4257,25802.0,25801.0,0.88073906]
[1693606505623,0.4257,25802.0,25801.0,0.90073906]
[1693606506021,1.301576,25802.0,25801.0,0.21819015]
[1693606507127,1.301576,25802.0,25801.0,0.36358815]
[1693606507321,1.301576,25802.0,25801.0,0.62208292]
[1693606507922,1.301576,25802.0,25801.0,0.50898615]
[1693606508722,1.156184,25802.0,25801.0,0.50898615]
[1693606509330,1.156184,25802.0,25801.0,0.62208292]
[1693606514731,1.156184,25802.0,25801.0,0.73146106]
[1693606515028,1.156184,25802.0,25801.0,0.62208292]
[1693606515426,1.136184,25802.0,25801.0,0.62208292]
[1693606515633,1.156184,25802.0,25801.0,0.62208292]
[1693606516526,1.156184,25802.0,25801.0,0.73146106]
[1693606516931,1.156184,25802.0,25801.0,0.62208292]
[1693606517631,1.136184,25802.0,25801.0,0.62208292]
[1693606518727,0.716484,25802.0,25801.0,0.62208292]
[1693606519524,0.716484,25802.0,25801.0,0.73146106]
[1693606519725,0.716484,25802.0,25801.0,0.62208292]
[1693606520125,0.716484,25802.0,25801.0,0.73146106]
[1693606520321,0.716484,25802.0,25801.0,0.75146106]
[1693606521137,0.716484,25802.0,25801.0,0.73146106]
[1693606521935,0.716484,25802.0,25801.0,0.75146106]
[1693606522134,0.716484,25802.0,25801.0,0.73146106]
[1693606530332,0.868484,25802.0,25801.0,0.73146106]